bitfinex-derivatives/quotes_BTCF0:USTF0_20210706
["timestamp","ask_amount","ask_price","bid_price","bid_amount"]
[1625545712896,0.80201544,34665.0,34655.0,0.24057544]
[1625545712997,0.80201544,34665.0,34655.0,0.29957544]
[1625545713297,0.80201544,34665.0,34664.0,0.001]
[1625545713398,0.70201544,34665.0,34664.0,0.001]
[1625545713698,0.70201544,34665.0,34659.0,0.002]
[1625545714148,0.1,34660.0,34659.0,0.002]
[1625545714249,0.159,34660.0,34618.0,0.5]
[1625545714349,0.72172632,34645.0,34639.0,0.24057544]
[1625545714448,0.96441632,34645.0,34644.0,0.064]
[1625545714849,0.96441632,34645.0,34644.0,0.005]
[1625545715704,1.06441632,34645.0,34644.0,0.005]
[1625545716102,0.96441632,34645.0,34644.0,0.005]
[1625545716305,0.96441632,34645.0,34643.0,0.005]
[1625545716504,1.02341632,34645.0,34643.0,0.064]
[1625545716605,1.02341632,34645.0,34643.0,0.005]
[1625545716804,1.08241632,34645.0,34643.0,0.005]
[1625545716905,1.08241632,34645.0,34624.0,0.24057544]
[1625545717008,0.057,34644.0,34624.0,0.29957544]
[1625545717105,4.7049,34644.0,34624.0,0.35857544]
[1625545717206,4.8229,34644.0,34624.0,0.35857544]
[1625545717505,4.8229,34644.0,34624.0,0.29957544]
[1625545717712,5.3229,34644.0,34624.0,0.29957544]
[1625545717905,4.8229,34644.0,34624.0,0.29957544]
[1625545718006,4.7639,34644.0,34624.0,0.29957544]
[1625545718107,4.8229,34644.0,34624.0,0.35857544]
[1625545718211,4.7639,34644.0,34624.0,0.35857544]
[1625545718310,0.72172632,34625.0,34624.0,0.35857544]
[1625545718613,0.72172632,34625.0,34624.0,0.29957544]
[1625545719462,0.72172632,34625.0,34624.0,0.35857544]
[1625545719912,0.72172632,34625.0,34624.0,0.29957544]
[1625545720020,1.04403632,34625.0,34624.0,0.059]
[1625545720312,1.14403632,34625.0,34624.0,0.059]
[1625545721315,1.20303632,34625.0,34624.0,0.059]
[1625545723769,1.20303632,34625.0,34617.0,0.24057544]
[1625545723970,1.20303632,34625.0,34617.0,0.29957544]
[1625545724269,1.10303632,34625.0,34617.0,0.29957544]
[1625545724372,0.48115088,34618.0,34617.0,0.29957544]
[1625545724471,0.73082088,34618.0,34617.0,0.29957544]
[1625545724870,0.83082088,34618.0,34617.0,0.29957544]
[1625545725322,0.73082088,34618.0,34617.0,0.29957544]
[1625545726525,0.48115088,34618.0,34617.0,0.29957544]
[1625545731389,0.48115088,34618.0,34617.0,0.57021544]
[1625545732891,0.48115088,34618.0,34617.0,0.29957544]
[1625545736711,0.48115088,34618.0,34617.0,0.059]
[1625545737603,0.48115088,34618.0,34614.0,0.24057544]
[1625545737705,0.48115088,34618.0,34614.0,0.29957544]
[1625545738505,0.24057544,34617.0,34614.0,0.29957544]
[1625545740310,0.24057544,34617.0,34615.0,0.001]
[1625545740413,0.24057544,34617.0,34615.0,0.06]
[1625545742568,0.24057544,34616.0,34615.0,0.001]
[1625545745672,0.29957544,34616.0,34615.0,0.001]
[1625545745772,0.31670564,34616.0,34615.0,0.001]
[1625545746273,0.31670564,34616.0,34613.0,0.001]
[1625545746875,0.01713095,34615.0,34613.0,0.001]
[1625545748385,0.01713095,34615.0,34613.0,0.06]
[1625545748494,0.001,34620.0,34613.0,0.119]
[1625545748684,0.001,34620.0,34619.0,0.72172632]
[1625545748889,0.001,34620.0,34619.0,0.83972632]
[1625545748983,0.001,34620.0,34619.0,0.8431513]
[1625545749285,0.003,34630.0,34628.0,0.056]
[1625545749485,0.24057544,34633.0,34631.0,0.056]
[1625545749687,0.24057544,34633.0,34631.0,0.115]
[1625545749787,0.004,34635.0,34632.0,0.00342401]
[1625545749989,0.004,34635.0,34632.0,0.12142401]
[1625545750389,0.004,34635.0,34633.0,0.00342373]
[1625545750488,0.004,34635.0,34633.0,0.12142373]
[1625545750688,0.004,34635.0,34634.0,0.72172632]
[1625545750788,0.004,34635.0,34634.0,0.83972632]
[1625545750889,0.004,34635.0,34634.0,0.84315009]
[1625545751139,0.004,34635.0,34634.0,0.83972632]
[1625545751489,0.104,34635.0,34634.0,0.83972632]
[1625545752091,0.104,34635.0,34634.0,0.72172632]
[1625545752193,0.104,34635.0,34634.0,0.78072632]
[1625545752293,0.104,34635.0,34634.0,0.72172632]
[1625545752294,0.1,34635.0,34634.0,0.72172632]
[1625545752392,0.1,34635.0,34634.0,0.78072632]
[1625545753449,0.1,34635.0,34634.0,0.72172632]
[1625545754799,0.1,34635.0,34634.0,1.06325632]
[1625545755101,0.1,34635.0,34634.0,1.00425632]
[1625545755502,0.004,34636.0,34634.0,1.00425632]
[1625545755607,0.004,34636.0,34634.0,1.06325632]
[1625545755705,0.004,34636.0,34634.0,1.00425632]
[1625545756152,0.004,34636.0,34634.0,0.72172632]
[1625545756553,0.004,34636.0,34634.0,0.78072632]
[1625545757857,0.004,34636.0,34634.0,0.72172632]
[1625545758356,0.24057544,34639.0,34634.0,0.72172632]
[1625545758455,0.29957544,34639.0,34634.0,0.72172632]
[1625545758557,0.24057544,34639.0,34634.0,0.72172632]
[1625545758655,0.24057544,34635.0,34634.0,0.72172632]
[1625545758755,0.46007544,34635.0,34634.0,0.72172632]
[1625545759008,0.46007544,34635.0,34634.0,0.48115088]
[1625545759110,0.51907544,34635.0,34633.0,0.001]
[1625545759208,0.57807544,34635.0,34633.0,0.001]
[1625545759606,0.1,34634.0,34633.0,0.001]
[1625545759705,0.218,34634.0,34633.0,0.001]
[1625545760361,0.23512438,34634.0,34633.0,0.001]
[1625545760458,0.73512438,34634.0,34633.0,0.001]
[1625545760560,0.23512438,34634.0,34633.0,0.001]
[1625545760657,0.71627526,34634.0,34633.0,0.001]
[1625545761059,1.89921834,34634.0,34633.0,0.001]
[1625545761460,1.223275,34634.0,34633.0,0.001]
[1625545761961,2.9130328,34634.0,34633.0,0.001]
[1625545762261,2.8540328,34634.0,34633.0,0.001]
[1625545762360,1.84021191,34634.0,34633.0,0.001]
[1625545762460,1.89921191,34634.0,34633.0,0.001]
[1625545762762,1.164275,34634.0,34633.0,0.001]
[1625545762862,1.223275,34634.0,34633.0,0.001]
[1625545763565,1.472945,34634.0,34633.0,0.001]
[1625545763864,3.16350897,34634.0,34633.0,0.001]
[1625545764918,2.14920439,34634.0,34633.0,0.001]
[1625545766720,3.16499519,34634.0,34633.0,0.001]
[1625545767218,3.16499519,34634.0,34632.0,0.001]
[1625545767672,3.06499519,34634.0,34632.0,0.001]
[1625545767771,1.20234785,34633.0,34632.0,0.001]
[1625545767872,1.26134785,34633.0,34632.0,0.001]
[1625545767972,1.32034785,34633.0,34632.0,0.001]
[1625545768323,1.42034785,34633.0,34632.0,0.001]
[1625545768874,2.4375484,34633.0,34632.0,0.001]
[1625545768973,2.7240184,34633.0,34632.0,0.001]
[1625545770325,3.91074461,34633.0,34632.0,0.001]
[1625545770727,5.26911896,34633.0,34632.0,0.001]
[1625545775337,6.80045069,34633.0,34632.0,0.001]
[1625545776138,5.26911896,34633.0,34632.0,0.001]
[1625545776238,5.26911896,34633.0,34631.0,0.001]
[1625545776537,5.26911896,34633.0,34621.0,5.19e-06]
[1625545776538,5.76911896,34633.0,34621.0,5.19e-06]
[1625545776639,0.05138166,34632.0,34621.0,5.19e-06]
[1625545776738,0.72172632,34622.0,34621.0,5.19e-06]
[1625545776838,0.98767632,34622.0,34621.0,5.19e-06]
[1625545776939,1.10567632,34622.0,34617.0,1.13996817]
[1625545777042,1.10567632,34622.0,34619.0,0.11568893]
[1625545777239,2.25532961,34622.0,34617.0,0.4891582]
[1625545777339,2.31432961,34622.0,34617.0,0.4891582]
[1625545777441,0.01712901,34621.0,34617.0,0.4891582]
[1625545777642,0.07612901,34621.0,34617.0,0.4891582]
[1625545777743,0.07612901,34621.0,34616.0,0.65621094]
[1625545777744,0.07612901,34621.0,34616.0,0.004]
[1625545777992,0.01712894,34620.0,34616.0,0.004]
[1625545778193,0.07612894,34620.0,34616.0,0.004]
[1625545778393,0.01712894,34620.0,34616.0,0.004]
[1625545778593,0.01712913,34619.0,34616.0,0.004]
[1625545778793,0.24057544,34617.0,34616.0,0.004]
[1625545778995,0.24057544,34617.0,34616.0,0.063]
[1625545779294,0.24057544,34617.0,34616.0,0.059]
[1625545779600,0.24057544,34617.0,34616.0,0.118]
[1625545780098,0.24057544,34617.0,34616.0,0.059]
[1625545780300,0.29957544,34617.0,34615.0,1.14435059]
[1625545780402,0.29957544,34617.0,34615.0,1.20335059]
[1625545780651,0.29957544,34617.0,34615.0,1.14435059]
[1625545780755,0.29957544,34617.0,34615.0,0.004]
[1625545780757,0.24057544,34616.0,34615.0,0.004]
[1625545780954,0.62873544,34616.0,34615.0,0.004]
[1625545782455,0.56973544,34616.0,34615.0,0.004]
[1625545782657,0.62873544,34616.0,34615.0,0.004]
[1625545783259,0.58686538,34616.0,34615.0,0.004]
[1625545783561,0.56973544,34616.0,34615.0,0.004]
[1625545784961,0.62873544,34616.0,34615.0,0.004]
[1625545785163,0.64586535,34616.0,34615.0,0.004]
[1625545785266,0.64586535,34616.0,34613.0,0.001]
[1625545785665,0.01713061,34615.0,34613.0,0.001]
[1625545786865,0.24057544,34614.0,34613.0,0.001]
[1625545787065,0.29957544,34614.0,34613.0,0.001]
[1625545787318,0.31670605,34614.0,34613.0,0.001]
[1625545791798,0.25770605,34614.0,34613.0,0.001]
[1625545791933,0.25770605,34614.0,34613.0,0.31376]
[1625545792335,0.35770605,34614.0,34613.0,0.31376]
[1625545792636,0.41670605,34614.0,34608.0,0.002]
[1625545792736,0.41670605,34614.0,34608.0,0.061]
[1625545792848,0.48115088,34609.0,34608.0,0.061]
[1625545793141,0.54015088,34609.0,34608.0,0.061]
[1625545793339,0.55728254,34609.0,34608.0,0.061]
[1625545793440,0.55728254,34609.0,34608.0,0.002]
[1625545794290,0.65728254,34609.0,34608.0,0.002]
[1625545794691,0.55728254,34609.0,34608.0,0.002]
[1625545796546,0.49828254,34609.0,34608.0,0.002]
[1625545797049,0.55728254,34609.0,34608.0,0.002]
[1625545797299,0.55728254,34609.0,34606.0,0.16556008]
[1625545797401,0.72739947,34609.0,34606.0,0.002]
[1625545797603,0.66839947,34609.0,34606.0,0.002]
[1625545797702,0.0171324,34608.0,34606.0,0.002]
[1625545798004,0.0171324,34608.0,34606.0,0.061]
[1625545798408,0.0171324,34608.0,34606.0,0.22450552]
[1625545798507,0.0761324,34608.0,34606.0,0.16550552]
[1625545798709,0.0761324,34608.0,34606.0,0.002]
[1625545798807,0.48115088,34609.0,34606.0,0.002]
[1625545798907,0.24057544,34607.0,34606.0,0.002]
[1625545799057,0.24057544,34607.0,34606.0,0.165431]
[1625545799256,0.25770729,34607.0,34606.0,0.165431]
[1625545799909,0.25770729,34607.0,34606.0,0.002]
[1625545800107,0.25770729,34607.0,34606.0,0.12]
[1625545800358,0.24057544,34607.0,34606.0,0.12]
[1625545800660,0.24057544,34609.0,34606.0,0.12]
[1625545800759,0.24057544,34609.0,34606.0,0.43543]
[1625545800859,0.24057544,34609.0,34606.0,1.5776018]
[1625545800961,0.41062229,34617.0,34608.0,0.78072632]
[1625545801060,0.24062229,34617.0,34608.0,0.83972632]
[1625545801161,0.01712828,34616.0,34614.0,0.16296171]
[1625545801259,0.01712828,34616.0,34614.0,0.40966171]
[1625545801360,1.08363376,34621.0,34614.0,0.52766171]
[1625545801560,0.9136,34621.0,34614.0,0.3647]
[1625545802164,0.9136,34621.0,34616.0,1.13880478]
[1625545802262,0.9136,34621.0,34616.0,1.19780478]
[1625545802362,0.9136,34621.0,34616.0,1.25680478]
[1625545802567,0.9136,34621.0,34620.0,1.13712794]
[1625545802664,0.9136,34621.0,34620.0,1.25512794]
[1625545802963,0.9136,34621.0,34620.0,1.97685426]
[1625545803063,0.9136,34621.0,34620.0,0.83972632]
[1625545803416,0.9136,34621.0,34620.0,1.97665506]
[1625545803667,1.0136,34621.0,34620.0,1.97665506]
[1625545804063,0.9136,34621.0,34620.0,1.97665506]
[1625545804165,0.9136,34621.0,34620.0,3.27334504]
[1625545804265,0.9136,34621.0,34620.0,3.77334504]
[1625545804363,0.24057544,34635.0,34620.0,3.77334504]
[1625545804565,0.24057544,34635.0,34620.0,5.6638002]
[1625545804969,0.24057544,34635.0,34627.0,0.72172632]
[1625545805069,0.24057544,34635.0,34627.0,1.00662632]
[1625545805165,0.24057544,34635.0,34627.0,1.06562632]
[1625545805467,0.24057544,34635.0,34627.0,2.19783227]
[1625545806319,0.002,34630.0,34627.0,2.19783227]
[1625545806669,0.002,34630.0,34627.0,1.06562632]
[1625545806919,0.002,34630.0,34629.0,0.24057544]
[1625545807020,0.002,34630.0,34629.0,0.29957544]
[1625545807122,0.002,34630.0,34629.0,0.35857544]
[1625545807422,0.002,34630.0,34629.0,0.29957544]
[1625545807821,0.002,34630.0,34629.0,0.35857544]
[1625545809131,0.002,34630.0,34629.0,0.29957544]
[1625545809528,0.25333,34630.0,34629.0,0.29957544]
[1625545810892,0.25333,34630.0,34629.0,0.059]
[1625545810893,0.31233,34630.0,34629.0,0.059]
[1625545810983,0.79348088,34630.0,34629.0,0.059]
[1625545811282,0.79348088,34630.0,34623.0,1.20925699]
[1625545811383,0.79348088,34630.0,34623.0,0.24057544]
[1625545811480,0.85248088,34630.0,34623.0,0.24057544]
[1625545811581,0.85248088,34630.0,34621.0,0.96914591]
[1625545811681,0.85248088,34630.0,16030.0,1.72735344]
[1625545811682,0.85248088,34630.0,34615.0,0.97107182]
[1625545811683,1.0191329,34628.0,34615.0,0.97107182]
[1625545811783,1.1371329,34628.0,34615.0,1.03007182]
[1625545811886,1.0781329,34628.0,34615.0,0.97107182]
[1625545812035,1.0781329,34628.0,34615.0,1.03007182]
[1625545812135,1.01918982,34627.0,34615.0,0.059]
[1625545812232,1.07818982,34627.0,34615.0,0.059]
[1625545812334,0.001,34625.0,34615.0,0.059]
[1625545812536,0.06,34625.0,34615.0,0.059]
[1625545812888,0.06,34625.0,34613.0,1.21205509]
[1625545812889,0.119,34625.0,34613.0,1.21205509]
[1625545812995,0.48115088,34614.0,34613.0,0.24057544]
[1625545813090,0.76862088,34614.0,34613.0,0.24057544]
[1625545814140,0.76862088,34614.0,34612.0,0.001]
[1625545815042,0.24057544,34613.0,34612.0,0.001]
[1625545815145,0.29957544,34613.0,34612.0,0.001]
[1625545815593,0.35857544,34613.0,34612.0,0.001]
[1625545815794,0.29957544,34613.0,34612.0,0.001]
[1625545815893,0.45857544,34613.0,34612.0,0.001]
[1625545816797,1.47896557,34613.0,34612.0,0.001]
[1625545817197,2.66942707,34613.0,34612.0,0.001]
[1625545817599,2.77396059,34613.0,34612.0,0.001]
[1625545817800,4.1345636,34613.0,34612.0,0.001]
[1625545817997,4.5471636,34613.0,34612.0,0.001]
[1625545818097,4.5471636,34613.0,34607.0,0.002]
[1625545818098,0.058,34612.0,34607.0,0.002]
[1625545818198,4.4881636,34613.0,34602.0,0.003]
[1625545818199,4.1131,34606.0,34602.0,0.003]
[1625545818299,4.1721,34606.0,34600.0,0.003]
[1625545818399,4.2311,34606.0,34600.0,0.003]
[1625545818604,1.02038857,34604.0,34600.0,0.003]
[1625545818701,1.07938857,34604.0,34600.0,0.003]
[1625545818899,1.13838857,34604.0,34600.0,0.003]
[1625545819001,0.72172632,34601.0,34600.0,0.003]
[1625545819100,0.78072632,34601.0,34600.0,0.003]
[1625545819202,0.83972632,34601.0,34600.0,0.003]
[1625545819302,0.93972632,34601.0,34600.0,0.003]
[1625545819701,1.96016821,34601.0,34600.0,0.003]
[1625545820205,0.93972632,34601.0,34600.0,0.003]
[1625545820505,1.02043417,34602.0,34600.0,0.003]
[1625545820700,1.02043417,34602.0,34600.0,0.34392]
[1625545821001,1.02043417,34602.0,34601.0,0.24057544]
[1625545821202,0.24057544,34603.0,34601.0,0.24057544]
[1625545821303,0.29957544,34603.0,34601.0,0.24057544]
[1625545822710,0.35857544,34603.0,34601.0,0.24057544]
[1625545823009,0.59915088,34603.0,34601.0,0.24057544]
[1625545823260,1.61841555,34603.0,34601.0,0.24057544]
[1625545823612,1.0192864,34602.0,34601.0,0.24057544]
[1625545823810,1.3917164,34602.0,34601.0,0.24057544]
[1625545824261,1.4917164,34602.0,34601.0,0.24057544]
[1625545824615,0.47243,34602.0,34601.0,0.24057544]
[1625545826216,0.47243,34602.0,34600.0,0.003]
[1625545826617,0.37243,34602.0,34600.0,0.003]
[1625545827269,0.1,34601.0,34599.0,0.001]
[1625545827368,0.159,34601.0,34599.0,0.001]
[1625545827469,0.218,34601.0,34599.0,0.001]
[1625545827669,0.118,34601.0,34599.0,0.001]
[1625545828368,0.1,34600.0,34599.0,0.001]
[1625545828468,0.218,34600.0,34599.0,0.001]
[1625545829869,0.159,34600.0,34599.0,0.001]
[1625545829969,0.1,34600.0,34599.0,0.001]
[1625545830271,0.159,34600.0,34599.0,0.001]
[1625545831073,0.159,34600.0,34599.0,0.24157544]
[1625545831473,0.159,34600.0,34599.0,0.13357544]
[1625545832074,0.218,34600.0,34599.0,0.13357544]
[1625545832175,0.159,34600.0,34599.0,0.13357544]
[1625545832276,0.218,34600.0,34599.0,0.13357544]
[1625545833282,0.218,34600.0,34599.0,0.13457544]
[1625545835131,0.45857544,34600.0,34599.0,0.13457544]
[1625545836283,0.45857544,34600.0,34599.0,0.13357544]
[1625545842299,0.47571214,34600.0,34599.0,0.13357544]
[1625545843805,0.2351367,34600.0,34599.0,0.13357544]
[1625545844157,0.1761367,34600.0,34599.0,0.13357544]
[1625545845262,0.159,34600.0,34599.0,0.13357544]
[1625545845458,0.17613648,34600.0,34599.0,0.13357544]
[1625545845659,0.23513648,34600.0,34599.0,0.13357544]
[1625545846312,0.218,34600.0,34599.0,0.13357544]
[1625545846613,0.26940978,34600.0,34599.0,0.13357544]
[1625545851123,0.21040978,34600.0,34599.0,0.07457544]
[1625545851222,0.45098522,34600.0,34599.0,0.07457544]
[1625545851324,0.50998522,34600.0,34599.0,0.07457544]
[1625545855381,0.50998522,34600.0,34597.0,0.24157544]
[1625545855681,0.05141127,34599.0,34597.0,0.24157544]
[1625545855782,0.48808127,34599.0,34597.0,0.24157544]
[1625545856234,0.0514115,34598.0,34597.0,0.24157544]
[1625545856334,0.1694115,34598.0,34597.0,0.24157544]
[1625545856535,0.2694115,34598.0,34597.0,0.24157544]
[1625545856685,0.2694115,34598.0,34597.0,0.001]
[1625545857289,0.50998694,34598.0,34597.0,0.001]
[1625545858044,0.50998694,34598.0,34587.0,0.24357544]
[1625545858145,0.56698694,34598.0,34587.0,0.24357544]
[1625545858245,0.65185829,34598.0,34587.0,0.24357544]
[1625545858345,0.05142078,34597.0,34587.0,0.24357544]
[1625545858445,0.11042078,34597.0,34587.0,0.24357544]
[1625545858547,0.22642078,34597.0,34587.0,0.24357544]
[1625545858948,0.05142002,34596.0,34587.0,0.24357544]
[1625545859048,0.16942002,34596.0,34587.0,0.24357544]
[1625545859150,0.1,34588.0,34587.0,0.24357544]
[1625545859249,0.34057544,34588.0,34587.0,0.24357544]
[1625545859349,0.70103544,34588.0,34587.0,0.24357544]
[1625545859699,0.71817554,34588.0,34587.0,0.24357544]
[1625545860251,0.77717554,34588.0,34587.0,0.24357544]
[1625545860354,0.71817554,34588.0,34587.0,0.24357544]
[1625545860652,0.77717554,34588.0,34587.0,0.24357544]
[1625545861958,0.77717554,34588.0,34587.0,0.003]
[1625545863256,1.01775098,34588.0,34587.0,0.003]
[1625545863560,1.00061088,34588.0,34587.0,0.003]
[1625545863656,1.08601088,34588.0,34587.0,0.003]
[1625545863756,1.10315219,34588.0,34587.0,0.003]
[1625545864307,1.13743657,34588.0,34587.0,0.003]
[1625545864657,1.13743657,34588.0,34578.0,0.08158255]
[1625545864765,1.13743657,34588.0,34576.0,0.65266037]
[1625545864766,1.13743657,34588.0,16042.0,1.80786252]
[1625545864767,1.13743657,34588.0,34568.0,1.25248584]
[1625545864781,0.5,34587.0,34568.0,1.25248584]
[1625545864864,0.057,34586.0,34568.0,1.03648584]
[1625545865090,0.057,34586.0,34535.0,0.1746]
[1625545865096,0.057,34586.0,34575.0,0.08180022]
[1625545865098,0.03,34585.0,34575.0,0.08180022]
[1625545865160,0.5,34585.0,34572.0,0.65440174]
[1625545865257,0.087,34584.0,34572.0,0.47090196]
[1625545865359,0.96230176,34573.0,34571.0,0.09870458]
[1625545865466,0.96230176,34573.0,34570.0,1.08140763]
[1625545865467,0.5,34572.0,34570.0,1.08140763]
[1625545865560,0.559,34572.0,34570.0,0.55950763]
[1625545865656,0.63515423,34572.0,34564.0,1.47240392]
[1625545865758,0.63515423,34572.0,34564.0,1.39700392]
[1625545865959,0.618,34572.0,34564.0,1.39700392]
[1625545866059,0.618,34572.0,34564.0,0.69960392]
[1625545866159,0.1,34565.0,34564.0,0.62740392]
[1625545866267,0.87503,34565.0,34563.0,0.005]
[1625545866468,0.93403,34565.0,34563.0,0.005]
[1625545866659,0.93403,34565.0,34559.0,1.47360436]
[1625545866761,0.01715791,34564.0,34559.0,1.34450436]
[1625545866859,0.01715791,34564.0,34559.0,1.15900436]
[1625545866860,0.07615791,34564.0,34559.0,1.15900436]
[1625545866960,0.13515791,34564.0,34559.0,1.07960436]
[1625545867063,0.5,34563.0,34550.0,0.9865986]
[1625545867162,4.5616,34560.0,34550.0,0.9865986]
[1625545867262,0.96230176,34551.0,34550.0,0.9865986]
[1625545867363,1.02130176,34551.0,34550.0,0.9865986]
[1625545867461,1.34019176,34551.0,34550.0,0.9865986]
[1625545867563,1.39919176,34551.0,34539.0,0.49556956]
[1625545867662,0.057,34550.0,34539.0,0.55456956]
[1625545867764,0.116,34550.0,34539.0,0.55456956]
[1625545867863,0.175,34550.0,34539.0,0.55456956]
[1625545868063,0.175,34550.0,34539.0,0.059]
[1625545868566,0.059,34550.0,34539.0,0.059]
[1625545868764,0.118,34550.0,34539.0,0.059]
[1625545868864,0.059,34550.0,34539.0,0.059]
[1625545869065,0.1,34540.0,34539.0,0.059]
[1625545869266,0.1,34540.0,34539.0,0.29957544]
[1625545869366,0.34057544,34540.0,34539.0,0.29957544]
[1625545869572,0.34057544,34540.0,34539.0,0.35857544]
[1625545870619,0.34057544,34540.0,34539.0,0.85295162]
[1625545871119,0.34057544,34540.0,34539.0,0.35857544]
[1625545872521,0.34057544,34540.0,34539.0,0.29957544]
[1625545872621,0.34057544,34540.0,34539.0,0.35857544]
[1625545874274,0.34057544,34540.0,34539.0,0.24057544]
[1625545874932,0.34057544,34540.0,34529.0,0.97569066]
[1625545875025,0.34057544,34540.0,34529.0,1.03469066]
[1625545875126,0.34057544,34540.0,34529.0,1.09369066]
[1625545875325,0.34057544,34540.0,34533.0,0.24057544]
[1625545875425,0.24057544,34540.0,34533.0,0.35857544]
[1625545876078,0.1,34534.0,34533.0,0.35857544]
[1625545876478,0.24057544,34540.0,34533.0,0.35857544]
[1625545877381,0.24057544,34534.0,34533.0,0.35857544]
[1625545889362,0.24057544,34534.0,34533.0,0.36200746]
[1625545894673,0.24057544,34534.0,34533.0,0.69687746]
[1625545898179,0.001,34536.0,34533.0,0.69687746]
[1625545898384,0.001,34536.0,34534.0,0.00343212]
[1625545898480,0.001,34536.0,34534.0,0.06243212]
[1625545898580,0.001,34536.0,34534.0,0.12143212]
[1625545898931,0.001,34536.0,34535.0,0.00343218]
[1625545899031,0.001,34536.0,34535.0,0.06243218]
[1625545899132,0.001,34536.0,34535.0,0.12143218]
[1625545899433,0.001,34536.0,34535.0,0.60258306]
[1625545900335,0.002,34541.0,34536.0,0.058]
[1625545900534,0.002,34541.0,34535.0,0.48458306]
[1625545900634,0.003,34546.0,34542.0,0.057]
[1625545900736,0.003,34546.0,34542.0,0.28597]
[1625545900836,0.005,34556.0,34548.0,0.056]
[1625545901135,0.005,34556.0,34549.0,0.00343155]
[1625545901237,0.005,34556.0,34549.0,0.27347155]
[1625545901435,0.005,34556.0,34550.0,0.72172632]
[1625545901537,0.005,34556.0,34550.0,0.96230176]
[1625545901636,0.005,34556.0,34550.0,0.96573304]
[1625545901736,0.005,34556.0,34550.0,1.02473304]
[1625545902287,0.104,34551.0,34550.0,1.02473304]
[1625545902738,0.104,34551.0,34550.0,1.08373304]
[1625545906541,0.104,34551.0,34550.0,1.02473304]
[1625545906743,0.104,34551.0,34550.0,1.02130176]
[1625545907798,0.34791,34551.0,34550.0,1.02130176]
[1625545907900,0.34791,34551.0,34550.0,0.48115088]
[1625545907998,0.34791,34551.0,34538.0,0.32959455]
[1625545908098,0.057,34550.0,34538.0,0.32959455]
[1625545908198,0.116,34550.0,34538.0,0.32959455]
[1625545908305,0.116,34550.0,34538.0,0.38859455]
[1625545908601,0.116,34550.0,34538.0,0.059]
[1625545908800,0.116,34550.0,34530.0,0.82668698]
[1625545908900,0.116,34550.0,34538.0,0.059]
[1625545909101,0.01716121,34549.0,34538.0,0.059]
[1625545909202,0.07616121,34549.0,34538.0,0.059]
[1625545909313,0.34398,34543.0,34538.0,0.059]
[1625545909505,0.1,34539.0,34538.0,0.059]
[1625545909852,0.24057544,34540.0,34538.0,0.059]
[1625545910855,0.24057544,34540.0,34536.0,0.29957544]
[1625545910955,0.24057544,34540.0,34538.0,0.059]
[1625545911507,0.48115088,34540.0,34538.0,0.059]
[1625545914066,0.48115088,34540.0,34538.0,0.118]
[1625545914466,0.48115088,34540.0,34538.0,0.4153]
[1625545915219,0.48115088,34540.0,34539.0,0.33247208]
[1625545915319,0.48115088,34540.0,34539.0,0.39147208]
[1625545915418,0.48115088,34540.0,34539.0,0.45047208]
[1625545915521,0.48115088,34540.0,34539.0,0.63204752]
[1625545915970,0.48115088,34540.0,34539.0,0.35857544]
[1625545916420,0.48115088,34540.0,34539.0,0.69111177]
[1625545916521,0.48115088,34540.0,34539.0,0.63211177]
[1625545916772,0.48115088,34540.0,34539.0,0.69111177]
[1625545916872,0.48115088,34540.0,34539.0,0.35857544]
[1625545916973,0.48115088,34540.0,34539.0,1.85788127]
[1625545917524,0.48115088,34540.0,34539.0,1.79888127]
[1625545918077,0.48115088,34540.0,34539.0,0.79934405]
[1625545918926,0.48115088,34540.0,34539.0,1.80210255]
[1625545921533,0.54015088,34540.0,34539.0,1.80210255]
[1625545921731,0.48115088,34540.0,34539.0,1.80210255]
[1625545922535,0.48115088,34540.0,34539.0,1.86110255]
[1625545923037,0.48115088,34540.0,34539.0,4.37797636]
[1625545923286,0.48115088,34540.0,34539.0,4.31897636]
[1625545923488,0.79831088,34540.0,34539.0,4.31897636]
[1625545923587,0.79831088,34540.0,34539.0,4.25997636]
[1625545923687,0.79831088,34540.0,34539.0,4.31897636]
[1625545924640,0.48115088,34540.0,34539.0,4.31897636]
[1625545924789,0.48115088,34540.0,34539.0,4.37797636]
[1625545924891,0.48115088,34540.0,34539.0,4.31897636]
[1625545925642,0.48115088,34540.0,34539.0,4.99093364]
[1625545927200,0.48115088,34540.0,34539.0,5.04993364]
[1625545927498,0.34229222,34541.0,34539.0,5.04993364]
[1625545927600,0.34229222,34541.0,34540.0,0.24057544]
[1625545927699,0.34229222,34541.0,34540.0,0.35857544]
[1625545927800,0.34229222,34541.0,34540.0,0.36948163]
[1625545927950,0.001,34542.0,34540.0,6.57955357]
[1625545928199,0.001,34542.0,34541.0,0.06990041]
[1625545928299,0.001,34542.0,34541.0,0.12890041]
[1625545928500,0.001,34542.0,34541.0,6.3374112]
[1625545928703,0.001,34542.0,34541.0,3.01558121]
[1625545928801,0.001,34542.0,34541.0,2.59398121]
[1625545928802,0.06,34542.0,34541.0,2.59398121]
[1625545929003,0.119,34542.0,34541.0,2.59398121]
[1625545929101,0.059,34541.0,34536.0,1.26137589]
[1625545929201,0.71149749,34542.0,34536.0,0.80767589]
[1625545929202,1.14515749,34542.0,34536.0,0.80767589]
[1625545929302,0.059,34536.0,34530.0,1.53638161]
[1625545929400,0.118,34536.0,34530.0,1.27918161]
[1625545929500,0.5,34535.0,34530.0,0.10808161]
[1625545929601,0.96230176,34531.0,34523.0,1.81086135]
[1625545929700,0.559,34530.0,34523.0,1.15046135]
[1625545929801,0.059,34530.0,34523.0,0.14746135]
[1625545929901,0.118,34530.0,34523.0,0.14746135]
[1625545930103,0.118,34530.0,34506.0,3.69154696]
[1625545930104,3.6187,34524.0,34522.0,0.33853063]
[1625545930302,4.01896,34524.0,34522.0,0.33853063]
[1625545930402,4.07796,34524.0,34522.0,0.33853063]
[1625545930502,0.1,34523.0,34522.0,0.33853063]
[1625545930602,0.159,34523.0,34522.0,0.33853063]